Cogmind - Beta 13 @@@ ROGUE MODE // 2024.03.18 @ 20:42:43 Player: Moya Result: Destroyed by S-27 Virus with Autogun Performance ------------- Evolutions (3) 1500 Regions Visited (6) 1200 Robots Destroyed (77) 385 Value Destroyed (2421) 2421 Prototype IDs (25) 500 Alien Tech Used (0) 0 Bonus (867) 867 TOTAL SCORE: 6873 Bonus ------- High Alert Combat Kills 553 Follower Combat Kills 14 Aligned with FarCom 300 Cogmind --------- Core Integrity 0/700 Matter 300/300 Energy 100/100 System Corruption 4% Temperature Cool (0) Movement Core (350) Ox6 Location -7/Factory Parts ------- > --- POWER (2) -------- (None) > --- PROPULSION (3) --- (None) > --- UTILITY (4) ------ Large Storage Unit > --- WEAPON (4) ------- (None) > --- INVENTORY (15) --- Light Ion Engine Wheel Wheel High-capacity Storage Unit Skeleton Box Improved Datajack Peak State ------------ > --- POWER ------------ Light Deuterium Engine > --- PROPULSION ------- Potential Leg Potential Leg Wheel > --- UTILITY ---------- Heat Sink Medium Storage Unit High-capacity Battery > --- WEAPON ----------- YOLO Cannon Enhanced Autogun > --- INVENTORY -------- High-capacity Storage Unit Improved Signal Interpreter Skeleton Box Shock Rifle Enhanced Autogun [Rating: 52] Favorites ----------- Power Ion Engine Engine Ion Engine Power Core Light Nuclear Core Propulsion Wheel Leg Potential Leg Wheel Wheel Utility Medium Storage Unit Device Cooling System Storage Medium Storage Unit Processor Improved Signal Interpreter Protection Light Armor Plating Weapon Assault Rifle Energy Gun EM Pulse Gun Energy Cannon Ion Cannon Ballistic Gun Assault Rifle Launcher Improved Grenade Launcher Special Melee Weapon Improved Datajack Build | -11 -10 -10 -10 -9 -8 -7 ------- Run | Yrd Mat Min Exi Min Mat Fac Slots Evolved 6 | . . . . . 4 2 Power 1 | . . . . . 1 . Propulsion 1 | . . . . . 1 . Utility 2 | . . . . . 1 1 Weapon 2 | . . . . . 1 1 Parts Attached 70 | 7 2 . 5 6 33 17 Power 10 | 1 . . . 1 4 4 Engine 9 | 1 . . . 1 4 3 Core 1 | . . . . . . 1 Reactor . | . . . . . . . Propulsion 18 | 3 . . . 1 7 7 Treads . | . . . . . . . Leg 7 | . . . . . 2 5 Wheel 11 | 3 . . . 1 5 2 Hover . | . . . . . . . Flight . | . . . . . . . Utility 18 | 1 2 . 5 . 7 3 Device 5 | . . . 1 . 2 2 Storage 7 | 1 1 . 3 . 2 . Processor 2 | . . . . . 2 . Hackware . | . . . . . . . Protection 4 | . 1 . 1 . 1 1 Artifact . | . . . . . . . Weapon 24 | 2 . . . 4 15 3 Energy Gun 10 | 1 . . . 2 6 1 Energy Cannon 6 | . . . . 1 3 2 Ballistic Gun 5 | 1 . . . 1 3 . Ballistic Cannon . | . . . . . . . Launcher 2 | . . . . . 2 . Special Weapon . | . . . . . . . Impact Weapon . | . . . . . . . Slashing Weapon . | . . . . . . . Piercing Weapon . | . . . . . . . Special Melee Weapon 1 | . . . . . 1 . Unidentified Prototypes 2 | . . . . . 1 1 Parts Lost 35 | . . . . . 15 20 Power 7 | . . . . . 2 5 Propulsion 10 | . . . . . 6 4 Utility 8 | . . . . . 3 5 Weapon 10 | . . . . . 4 6 Highest Loss Streak 16 | . . . . . 4 16 To Critical Strikes 1 | . . . . . 1 . Average Slot Usage (%) 92 | . 99 100 100 99 78 79 Engine 12 | . 14 14 14 14 11 10 Leg 2 | . . . . . 3 10 Wheel 22 | . 28 28 28 28 16 5 Device 2 | . . . 1 . 5 5 Storage 14 | . 18 14 14 14 16 14 Protection 9 | . 8 14 12 14 2 4 Energy Gun 12 | . 14 14 14 13 6 11 Energy Cannon 2 | . . . . . 4 7 Ballistic Gun 10 | . 14 14 14 13 6 . Launcher 1 | . . . . . 3 3 Naked Turns . | . . . . . . . Heaviest Build 64 | 14 17 17 22 36 51 64 Greatest Support 60 | 26 20 20 20 22 60 60 Greatest Overweight (x) 6 | . . . 1 1 3 6 Average Overweight (x) . | . . . . 1 . 1 Largest Inventory Capacity 20 | 8 8 8 20 10 15 15 Average Capacity 10 | 7 8 8 9 10 10 15 Most Carried 10 | 2 4 4 10 10 10 7 Average Carried 6 | . 2 4 7 9 6 5 Final Capacity 15 | 8 8 8 10 10 15 15 Final Carried 10 | 2 4 4 10 10 7 6 Class Distribution -------------------- 70% | Mutant 8% | Tank 7% | Scavenger-Skirmisher 7% | Skirmisher Dominant Class ---------------- Mutant | -10/Materials Mutant | -10/Mines Mutant | -10/Exiles Mutant | -9/Mines Scavenger-Skirmisher | -8/Materials Tank | -7/Factory Resources | -11 -10 -10 -10 -9 -8 -7 ----------- Run | Yrd Mat Min Exi Min Mat Fac Matter Collected 1184 | 267 46 . . 136 456 279 Remotely . | . . . . . . . Salvage Created 2325 | 96 46 . . 237 1266 680 Parts 119 | 8 . . . 16 58 37 Haulers Intercepted 1 | . . . . . 1 . Recyclers Shooed 1 | . . . . . . 1 Parts Field Recycled . | . . . . . . . Retrieved Matter . | . . . . . . . Parts Self-Destructed . | . . . . . . . Prevented . | . . . . . . . Kills | -11 -10 -10 -10 -9 -8 -7 ------- Run | Yrd Mat Min Exi Min Mat Fac Combat Hostiles Destroyed 54 | . 1 . . 10 30 13 Guns 14 | . 1 . . 6 4 3 Cannons 11 | . . . . 2 7 2 AOE 27 | . . . . 2 17 8 Classes Destroyed 13 | 2 1 . . 3 7 . Worker 4 | . . . . . 3 1 Builder 6 | . . . . 1 1 4 Tunneler 3 | 1 . . . . 1 1 Hauler 1 | . . . . . 1 . Recycler 6 | 1 . . . . 3 2 Watcher 3 | . . . . . 3 . Swarmer 9 | . . . . 4 5 . Grunt 28 | . 1 . . 5 12 10 Brawler 5 | . . . . 1 4 . Duelist 3 | . . . . . 3 . Protector 1 | . . . . . 1 . Sentry 7 | . . . . . 4 3 Hunter 1 | . . . . . 1 . Best Kill Streak 19 | 2 1 . . 5 19 18 Combat Bots Only 10 | . 1 . . 4 9 10 Max Kills in Single Turn 4 | 1 1 . . 2 4 3 Gunslinging . | . . . . . . . Exploded 4 | . . . . 1 4 3 Melee . | . . . . . . . Uniques/NPCs Destroyed . | . . . . . . . Combat | -11 -10 -10 -10 -9 -8 -7 -------- Run | Yrd Mat Min Exi Min Mat Fac Hostile Shots Fired 469 | . 4 . . 34 131 300 Missed 145 | . . . . 13 35 97 Damage Taken 4704 | 13 45 19 . 247 1790 2590 Core 1021 | 10 . 1 . 10 297 703 Absorbed by Shields 48 | . . . . . . 48 Ignored by Resistances 143 | . . . . . . 143 Core Remaining (%) 77 | 96 . . . 91 46 . Volleys Fired 110 | 3 4 . . 18 53 32 Largest 4 | 2 2 . . 2 3 4 Hottest 266 | 60 60 . . 100 159 266 Shots Fired 242 | 6 8 . . 30 102 96 Gun 150 | 6 8 . . 24 66 46 Cannon 74 | . . . . 6 29 39 Launcher 18 | . . . . . 7 11 Special . | . . . . . . . Kinetic 63 | 3 4 . . 12 44 . Thermal 133 | . . . . 11 37 85 Explosive 18 | . . . . . 7 11 Electromagnetic 28 | 3 4 . . 7 14 . Robot Hit Streak 12 | 2 8 . . 5 11 12 Robot Miss Streak 5 | 2 . . . 3 5 3 Penetration Max . | . . . . . . . Secondary Targets 1 | . . . . 1 . . Max Gunslinging Chain 1 | . . . . 1 . . Shots Hit Robots 131 | 3 7 . . 18 52 51 Core Hits 117 | 2 2 . . 12 52 49 Critical Kills 2 | . . . . . 2 . Critical Parts Destroyed . | . . . . . . . Critical Strikes 5 | . . . . . 2 3 Burn 3 | . . . . . . 3 Meltdown 2 | . . . . . 2 . Melee Attacks 2 | . . . . . 2 . Impact . | . . . . . . . Slashing . | . . . . . . . Piercing . | . . . . . . . Sneak Attacks . | . . . . . . . Combat Hostiles . | . . . . . . . Follow-up Attacks . | . . . . . . . Damage Inflicted 9197 | 48 120 41 . 1161 5367 2460 Guns 1424 | 42 85 . . 191 568 538 Cannons 2592 | . . . . 456 1663 473 Explosions 4892 | . 35 . . 488 3136 1233 Melee . | . . . . . . . Ramming 289 | 6 . 41 . 26 . 216 Kinetic 492 | 12 34 . . 86 360 . Thermal 6192 | . 35 . . 970 4176 1011 Explosive 1916 | . . . . . 683 1233 Electromagnetic 308 | 30 51 . . 79 148 . Impact . | . . . . . . . Slashing . | . . . . . . . Piercing . | . . . . . . . Highest Corruption 6 | . . . . 2 6 4 Average Corruption 4 | . . . . 2 6 4 Corruption Purged . | . . . . . . . Corruption Blocked . | . . . . . . . Effects 11 | . . . . . 6 5 Message Errors 2 | . . . . . 1 1 Matter Fused 2 | . . . . . . 2 Energy Discharges 2 | . . . . . 1 1 Data Loss (minor) 1 | . . . . . 1 . Data Loss (major) 1 | . . . . . . 1 Misfires 1 | . . . . . 1 . Alerts 1 | . . . . . 1 . Weapon Failures 1 | . . . . . 1 . Overload Shots . | . . . . . . . Overflow Damage 774 | . . . . 163 601 10 Projectiles 450 | . . . . 153 297 . Explosions 324 | . . . . 10 304 10 Melee . | . . . . . . . Knockbacks . | . . . . . . . Impact . | . . . . . . . Kinetic . | . . . . . . . Secondary . | . . . . . . . Self-Inflicted Damage 353 | 3 . 19 . 12 308 11 Shots 7 | . . . . . 7 . Rammed 13 | 1 . 5 . 6 . 1 Targets Rammed 39 | 1 . 5 . 6 1 26 Kicked 26 | . . . . . 1 25 Crushed . | . . . . . . . Highest Temperature 500 | . 51 . . 240 365 500 Average Temperature 129 | . 30 . . 101 99 187 Received Heat Transfer 1041 | . 24 . . 105 423 489 Effects 11 | . . . . 1 1 9 Shutdowns 3 | . . . . . . 3 Energy Bleed 2 | . . . . . . 2 Interference 1 | . . . . 1 . . Matter Decay 1 | . . . . . . 1 Short Circuit 1 | . . . . . 1 . Damage (minor) 1 | . . . . . . 1 Damage (major) 2 | . . . . . . 2 Siege Activations . | . . . . . . . Robots Corrupted . | . . . . . . . Combat Hostiles . | . . . . . . . Parts Fried . | . . . . . . . Impact Corruptions . | . . . . . . . Robots Melted 2 | . . . . . 2 . Combat Hostiles 2 | . . . . . 2 . Parts Melted 8 | . . . . 1 6 1 Heat Transferred 7053 | . 50 . . 894 4059 2050 Parts Sabotaged . | . . . . . . . Parts Stolen . | . . . . . . . Parts Stripped . | . . . . . . . Power Chain Reactions 2 | . 1 . . . 1 . Alert | -11 -10 -10 -10 -9 -8 -7 ------- Run | Yrd Mat Min Exi Min Mat Fac Peak Influence 1007 | 10 38 14 . 270 1007 773 Initial 457 | . 6 14 . . 61 457 Average 380 | 3 18 14 . 193 643 557 Maximum Alert Level 3 | . . . . 1 3 3 Low Security (%) 38 | 100 100 100 . 49 14 . Level 1 13 | . . . . 50 11 . Level 2 27 | . . . . . 14 88 Level 3 21 | . . . . . 60 11 Level 4 . | . . . . . . . Level 5 . | . . . . . . . High Security . | . . . . . . . Max Security . | . . . . . . . Squads Dispatched 20 | . 2 . . 1 9 8 Investigation . | . . . . . . . Extermination 1 | . . . . . . 1 Reinforcement 9 | . 2 . . 1 4 2 Assault 4 | . . . . . 3 1 Garrison 6 | . . . . . 2 4 Intercept . | . . . . . . . Searches Triggered . | . . . . . . . Construction Impeded 3 | . . . . 1 1 1 Haulers Reinforced 1 | . . . . . . 1 Active Scanning Responses . | . . . . . . . Cargo Convoy Interrupts . | . . . . . . . Stealth | -11 -10 -10 -10 -9 -8 -7 --------- Run | Yrd Mat Min Exi Min Mat Fac Distress Signals 4 | . 1 . . 1 1 1 Communications Jammed . | . . . . . . . Distress Signals . | . . . . . . . Times Spotted 94 | . 3 . . 12 42 37 Peak Tracking Total 14 | . 1 . . 3 6 14 Tactical Retreats 7 | . . . . . 1 6 Traps | -11 -10 -10 -10 -9 -8 -7 ------- Run | Yrd Mat Min Exi Min Mat Fac Traps Triggered . | . . . . . . . Indirectly . | . . . . . . . Trap Hack Attempts . | . . . . . . . Triggered . | . . . . . . . Disarmed . | . . . . . . . Reprogrammed . | . . . . . . . Reused . | . . . . . . . Traps Extracted . | . . . . . . . Installed . | . . . . . . . Triggered . | . . . . . . . Machines | -11 -10 -10 -10 -9 -8 -7 ---------- Run | Yrd Mat Min Exi Min Mat Fac Machines Disabled 7 | . . . . 1 5 1 Max in Single Turn 2 | . . . . 1 2 1 Garrison Access 1 | . . . . . 1 . Machines Repaired . | . . . . . . . Machines Dismantled . | . . . . . . . Machines Sabotaged . | . . . . . . . Overloaded Fab Kills . | . . . . . . . Hacking | -11 -10 -10 -10 -9 -8 -7 --------- Run | Yrd Mat Min Exi Min Mat Fac Machines Accessed 5 | . . . 5 . . . Terminals . | . . . . . . . Fabricators . | . . . . . . . Repair Stations . | . . . . . . . Recycling Units . | . . . . . . . Scanalyzers . | . . . . . . . Garrison Access . | . . . . . . . Total Hacks 50 | . . . 50 . . . Successful 50 | . . . 50 . . . Failed . | . . . . . . . Catastrophic . | . . . . . . . Database Lockouts . | . . . . . . . Manual 9 | . . . 9 . . . Terminals . | . . . . . . . Fabricators . | . . . . . . . Repair Stations . | . . . . . . . Recycling Units . | . . . . . . . Scanalyzers . | . . . . . . . Garrison Access . | . . . . . . . Terminal Hacks 50 | . . . 50 . . . Record 49 | . . . 49 . . . Derelict Proto ID Bank 1 | . . . 1 . . . Fabricator Hacks . | . . . . . . . Repair Station Hacks . | . . . . . . . Recycling Unit Hacks . | . . . . . . . Scanalyzer . | . . . . . . . Garrison Access Hacks . | . . . . . . . Unauthorized Hacks . | . . . . . . . Terminals . | . . . . . . . Fabricators . | . . . . . . . Repair Stations . | . . . . . . . Recycling Units . | . . . . . . . Scanalyzers . | . . . . . . . Garrison Access . | . . . . . . . Data Cores Recovered . | . . . . . . . Used . | . . . . . . . Hacking Detections . | . . . . . . . Full Trace Events . | . . . . . . . Feedback Events . | . . . . . . . Feedback Blocked . | . . . . . . . Robot Schematics Acquired . | . . . . . . . Robots Built . | . . . . . . . Authchips . | . . . . . . . Time . | . . . . . . . Total Robot Build Rating . | . . . . . . . Part Schematics Acquired . | . . . . . . . Parts Built . | . . . . . . . Authchips . | . . . . . . . Time . | . . . . . . . Total Part Build Rating . | . . . . . . . Parts Repaired . | . . . . . . . Time . | . . . . . . . Parts Recycled . | . . . . . . . Recycled Matter . | . . . . . . . Retrieved Matter . | . . . . . . . Retrieved Components . | . . . . . . . Parts Scanalyzed . | . . . . . . . Part Schematics Acquired . | . . . . . . . Parts Damaged . | . . . . . . . Bothacking | -11 -10 -10 -10 -9 -8 -7 ------------ Run | Yrd Mat Min Exi Min Mat Fac Used RIF Installer . | . . . . . . . Robots Hacked . | . . . . . . . Non-combat . | . . . . . . . Combat . | . . . . . . . Robot Hacks Applied . | . . . . . . . Relay Couplers Released 2 | . . . . . 2 . Machine Destruction 2 | . . . . . 2 . Fabnet Peak Effective % . | . . . . . . . Robots Rewired . | . . . . . . . Allies Hacked . | . . . . . . . Hacks Repelled . | . . . . . . . Allies | -11 -10 -10 -10 -9 -8 -7 -------- Run | Yrd Mat Min Exi Min Mat Fac Total Allies 4 | . . . . 4 . . Largest Group 4 | . . . . 4 4 . Highest-Rated Group 71 | . . . . 71 71 . Highest-Rated Ally 31 | . . . . 31 31 . Total Orders 2 | . . . . 2 . . FOLLOW 1 | . . . . 1 . . GUARD 1 | . . . . 1 . . Ally Attacks 13 | . . . . 5 8 . Total Damage 137 | . . . . 62 75 . Kills 2 | . . . . 2 . . Allies Corrupted . | . . . . . . . Allies Melted . | . . . . . . . Intel | -11 -10 -10 -10 -9 -8 -7 ------- Run | Yrd Mat Min Exi Min Mat Fac Robot Analysis Total . | . . . . . . . Derelict Logs Recovered . | . . . . . . . Drone Launches . | . . . . . . . Drone Recoveries . | . . . . . . . Exploration | -11 -10 -10 -10 -9 -8 -7 ------------- Run | Yrd Mat Min Exi Min Mat Fac Turns Passed 3997 | 123 162 297 1561 488 738 628 Spaces Moved 3408 | 116 182 315 1581 388 453 373 Core 5 | 3 . . . . . 2 Treads . | . . . . . . . Legs 346 | . . . . . 58 288 Wheels 3057 | 113 182 315 1581 388 395 83 Hover . | . . . . . . . Flight . | . . . . . . . Fastest Speed 45 | 50 80 80 80 95 90 45 Average Speed 95 | 87 80 80 88 99 107 123 Slowest Speed 350 | 90 80 80 95 100 145 350 Overloaded Moves 156 | . . . . . . 156 Propulsion Burnouts . | . . . . . . . Robots Hopped . | . . . . . . . Cave-ins Triggered . | . . . . . . . Exploration Rate (%) 39 | 4 31 43 94 70 29 8 Regions Visited 6 Branch Regions 3 Pre-discovered Areas 1 | . . . 1 . . . Known Exits Taken . | . . . . . . . Unknown Exits Taken 6 | 1 1 1 1 1 1 . Scrap Searched 1 | . . . . 1 . . Spaces Dug 2 | . . . . . . 2 Terrain Destroyed 348 | . 2 . . 46 288 12 Melee . | . . . . . . . Projectile 13 | . . . . 2 8 3 AOE 335 | . 2 . . 44 280 9 Terrain Rammed . | . . . . . . . Walls Destroyed . | . . . . . . . Machines Disabled . | . . . . . . . Actions | -11 -10 -10 -10 -9 -8 -7 --------- Run | Yrd Mat Min Exi Min Mat Fac Total 3896 | 127 189 359 1733 451 572 465 Wait 212 | . . 40 136 22 1 13 Move 3402 | 115 181 314 1580 387 452 373 Hop . | . . . . . . . Pick Up 30 | 1 2 . 6 4 14 3 Fast Attach 24 | 6 1 . . 1 9 7 Attach 27 | . . . . 3 18 6 Detach 9 | . . . . . 8 1 Swap 19 | 1 1 . 5 2 6 4 Drop 18 | . . . 3 7 8 . Fire 110 | 3 4 . . 18 53 32 Melee 2 | . . . . . 2 . Ram 13 | 1 . 5 . 6 . 1 Kick 26 | . . . . . 1 25 Crush . | . . . . . . . Escape Stasis . | . . . . . . . Rewire 4 | . . . 3 1 . . Trap . | . . . . . . . Miscellaneous . | . . . . . . . Route ------- -11/Scrapyard -10/Materials -10/Mines -10/Exiles (discovered 2 exits: [*Min x2]) -9/Mines (discovered 2 exits: *Mat x2) -8/Materials -7/Factory History --------- Turn | Location | Event 23 | -11/Scrapyard | Discovered new exit (range 15) 124 | -11/Scrapyard | Entered Materials 231 | -10/Materials | Discovered new exit (range 15) 238 | -10/Materials | Met 8R-AWN 286 | -10/Materials | Entered Mines 287 | -10/Mines | Followed 8R-AWN into the Mines 302 | -10/Mines | Build established: Mutant 578 | -10/Mines | Discovered new exit (range 5) 583 | -10/Mines | Entered Exiles 607 | -10/Exiles | Welcomed by 8R-AWN 638 | -10/Exiles | Met EX-HEX 751 | -10/Exiles | Met EX-DEC 823 | -10/Exiles | Learned location of Zion (-6) 883 | -10/Exiles | Visited The Gauntlet 1139 | -10/Exiles | Discovered new exit (range 14) 1231 | -10/Exiles | Met EX-BIN 1253 | -10/Exiles | Aligned with FarCom system 1254 | -10/Exiles | Given EX-Vault access code 1340 | -10/Exiles | Opened EX-Vault 1344 | -10/Exiles | Found Prototype Leg 1346 | -10/Exiles | Found Prototype Leg 1350 | -10/Exiles | Found Prototype Device 1361 | -10/Exiles | Found Prototype Energy Cannon 1363 | -10/Exiles | Identified Potential Leg (x2) 1363 | -10/Exiles | Identified Skeleton Box 1363 | -10/Exiles | Identified YOLO Cannon 1421 | -10/Exiles | Warned to stay clear of 0b10 Research branches 1879 | -10/Exiles | Learned about 8R-AWN's background 1925 | -10/Exiles | Discovered new exit (range 15) 2144 | -10/Exiles | Stole three prototypes: Potential Leg, Skeleton Box, YOLO Cannon 2144 | -10/Exiles | Entered Mines 2190 | -9/Mines | Discovered new exit (range 15) 2380 | -9/Mines | Escorted by a lone wolf Derelict 2514 | -9/Mines | Assisted by bots powering up and referring to "LRC-V3" 2616 | -9/Mines | Discovered new exit (range 14) 2632 | -9/Mines | Entered Materials 2632 | -8/Materials | Accompanied by 4 allies 2632 | -8/Materials | Evolved 4 slots: Power x1, Propulsion x1, Utility x1, Weapon x1 2703 | -8/Materials | Lost 4 allies 2711 | -8/Materials | Garrison activated, responded to threat 2765 | -8/Materials | Destroyed 8 combat bots 3032 | -8/Materials | First assault squad dispatched 3038 | -8/Materials | Lost 3 parts (1p2n) 3107 | -8/Materials | Lost 4 parts (1n1u2w) 3120 | -8/Materials | Destroyed 9 combat bots 3253 | -8/Materials | Discovered new exit (range 16) 3331 | -8/Materials | Core integrity fell below 50% 3364 | -8/Materials | Lost 4 parts (1n1u2w) 3370 | -8/Materials | Entered Factory 3370 | -7/Factory | Evolved 2 slots: Utility x1, Weapon x1 3372 | -7/Factory | FarCom data flow suspended 3721 | -7/Factory | Destroyed 10 combat bots 3765 | -7/Factory | Garrison activated, responded to threat 3770 | -7/Factory | First assault squad dispatched 3917 | -7/Factory | Core integrity fell below 50% 3949 | -7/Factory | Core integrity fell below 20% 3998 | -7/Factory | Destroyed by S-27 Virus with Autogun Last Messages --------------- 03915_ System corrupted: Matter fused (-7). 03916_ Construction Platform disabled. 03917_ S-27 Virus suffers critical hit (Destroy). 03923_ S-27 Virus destroyed. 03927_ M-28 Smith repairs S-27 Virus. 03931_ System corrupted: Matter fused (-8). 03931_ Hvy. Deuterium Engine destroyed. 03933_ U-05 Engineer builds a Wall. Disabling or destroying stationary machines or terrain requires that a single hit meet or exceed the object's Armor value. Inspect machines by right-clicking on them, and walls via Ctrl-RMB (or as any other object in keyboard mode). Hovering the cursor over an object also shows its Armor in the Scan window. 03954_ Hcp. Battery destroyed. 03970_ Kicked W-25 Informer. 03978_ M-28 Smith fits Backup Propulsion III on S-27 Virus. 03979_ Kicked W-25 Informer. 03981_ Hvy. Ion Cannon destroyed. 03983_ W-25 Informer sends out distress signal. 03992_ Potential Leg destroyed. Map ----- +----------------------------------------------------+ | ??????????????????????????????????????? | | ?????????????????????????????????###### | | ?????????????????????????????????# | | ?????????????????????????????????# "" | | ?????????????????????????????????# "F | | ?????????????????????????????????# """ | | ?????????????????????????????????# """ | | ?????????????????????????????????# | | ???????????###+###???????????????# % | | ???????????# #???????#####???#! | | ???????????# ######### ########## | | ???????????# | | ???????????# ######### ########## | | ???????????# #???????##+##????????? | | ???????????## s##????????????????????? | | ????????????# #?????????????????????? | | ????????????+ ######????????????????? | | ????????????# s +????????????????? | | ????????????# p ######????????????????? | | ????????????# ss#?????????????????????? | | ????????????# s#?????????????????????? | | ????????????# #?????????????????????? | | ????????????# #?????????????????????? | | ????????????# #?????????????????????? | | ????????????# #?????????????????????? | | ????????????# @ #?????????????????????? | | ????????????+^ +?????????????????????? | | ????????????# #?????????????????????? | | ????????????+ #?????????????????????? | | ????????????#####?????????????????????? | | ??????????????????????????????????????? | | ??????????????????????????????????????? | | ??????????????????????????????????????? | | ??????????????????????????????????????? | | ??????????????????????????????????????? | | | | | | | | | | | | | | | | | | | | | | | | | | | | | | | +----------------------------------------------------+ Best States ------------- Heat Dissipation 56 Energy Generation 23 Energy Capacity 560 Matter Stores 300 Matter Capacity 400 Sight Range 16 Terrain Scan Density 10 Armor Coverage 225 Resistance: KI 20 Evasion (%) 66 Recoil Reduction 4 Item Schematics ----------------- None Robot Schematics ------------------ None Fabricated ------------ Nothing Alien Tech Used ----------------- None Achievements -------------- Let's See Who's Tougher Challenges ------------ None Game ------ Seed VariableMassSpoofer Manual? 0 Play Time 00:59:43 Cumulative 13.7 hours Start 2024.03.18 @ 19:19:44 End 2024.03.18 @ 20:42:43 Sessions 1 Manual Loads 0 Difficulty Rogue Special Mode None Game No. 14 Rogue 7 Adventurer 7 Explorer 0 Win Type - Total 0 Types 0/0/0/0/0/0/0/0/0 Lore% 15 Gallery% 23 Achievement% 16 Wizard Run 0 Options --------- Layout 1 ASCII 0 Keyboard 1 Movement Vi Keybinds 0 Fullscreen 1 Font 32/SmallcapsGlow Map View 77x35 Zoom Use 0% Tactical HUD 1 Map Filters NONE Filters NONE Steam 1 RUN: 276f5a3e-5396-4c46-813e-6db0d13468ab